fUST/lending_fUST_20241230
["ID","MTS","AMOUNT","RATE_DAILY","PERIOD"]
[347198259,1735563038260,-981.97,0.00015616,2]
[347198260,1735563038271,-981.97,0.00015616,2]
[347198261,1735563038282,-982.00814824,0.00015616,2]
[347198262,1735563038293,-2740.7494523,0.00015617,2]
[347198263,1735563038304,-66658.99294987,0.00015617,2]
[347198264,1735563038315,-2168686.37161627,0.00015617,2]
[347198265,1735563038425,-89593.9,0.00015617,2]
[347198333,1735563039415,-500.0,0.00012325,2]
[347198334,1735563039425,-500.0,0.00012325,2]
[347198335,1735563039434,-500.0,0.00012325,2]
[347198336,1735563039443,-248.56025814,0.00012325,2]
[347198337,1735563039452,-42.34279751,0.00012325,2]
[347198338,1735563039463,-175.57260877,0.00012325,2]
[347198339,1735563039474,-500.0,0.00012325,2]
[347198340,1735563039482,-500.0,0.00012325,2]
[347198341,1735563039491,-500.0,0.00012325,2]
[347198342,1735563039500,-500.0,0.00012325,2]
[347198343,1735563039509,-500.0,0.00012325,2]
[347198344,1735563039517,-500.0,0.00012325,2]
[347198345,1735563039526,-344.61704676,0.00012325,2]
[347198346,1735563039535,-435.72932261,0.00012325,2]
[347198347,1735563039544,-500.0,0.00012327,2]
[347198348,1735563039554,-579.16276021,0.00013699,2]
[347198349,1735563039563,-262.42338212,0.00013699,2]
[347198350,1735563039573,-579.16276021,0.00013699,2]
[347198351,1735563039582,-579.16276021,0.00013699,2]
[347198352,1735563039592,-579.16276021,0.00013699,2]
[347198353,1735563039601,-579.16276021,0.00013699,2]
[347198354,1735563039611,-579.16276021,0.00013699,2]
[347198355,1735563039620,-579.16276021,0.00013699,2]
[347198356,1735563039629,-579.16276021,0.00013699,2]
[347198357,1735563039638,-579.16276021,0.00013699,2]
[347198358,1735563039647,-579.16276021,0.00013699,2]
[347198359,1735563039657,-579.16276021,0.00013699,2]
[347198360,1735563039665,-579.16276021,0.00013699,2]
[347198361,1735563039674,-579.16276021,0.00013699,2]
[347198362,1735563039683,-579.16276021,0.00013699,2]
[347198363,1735563039693,-579.16276021,0.00013699,2]
[347198364,1735563039702,-579.16276021,0.00013699,2]
[347198365,1735563039711,-579.16276021,0.00013699,2]
[347198366,1735563039723,-579.16276021,0.00013699,2]
[347198367,1735563039733,-579.16276021,0.00013699,2]
[347198368,1735563039742,-579.16276021,0.00013699,2]
[347198369,1735563039752,-579.16276021,0.00013699,2]
[347198371,1735563039762,-579.16276021,0.00013699,2]
[347198372,1735563039771,-579.16276021,0.00013699,2]
[347198373,1735563039780,-579.16276021,0.00013699,2]
[347198374,1735563039790,-579.16276021,0.00013699,2]
[347198375,1735563039799,-579.16276021,0.00013699,2]
[347198376,1735563039808,-579.16276021,0.00013699,2]
[347198377,1735563039818,-579.16276021,0.00013699,2]
[347198378,1735563039828,-579.16276021,0.00013699,2]
[347198379,1735563039838,-579.16276021,0.00013699,2]
[347198380,1735563039847,-579.16276021,0.00013699,2]
[347198381,1735563039857,-579.16276021,0.00013699,2]
[347198382,1735563039866,-579.16276021,0.00013699,2]
[347198383,1735563039875,-579.16276021,0.00013699,2]
[347198384,1735563039892,-579.16276021,0.00013699,2]
[347198385,1735563039901,-579.16276021,0.00013699,2]
[347198386,1735563039910,-579.16276021,0.00013699,2]
[347198387,1735563039919,-579.16276021,0.00013699,2]
[347198388,1735563039929,-579.16276021,0.00013699,2]
[347198389,1735563039938,-579.16276021,0.00013699,2]
[347198390,1735563039947,-579.16276021,0.00013699,2]
[347198391,1735563039957,-579.16276021,0.00013699,2]
[347198392,1735563039967,-579.16276021,0.00013699,2]
[347198393,1735563039981,-579.16276021,0.00013699,2]
[347198394,1735563039990,-579.16276021,0.00013699,2]
[347198395,1735563039999,-579.16276021,0.00013699,2]
[347198396,1735563040009,-579.16276021,0.00013699,2]
[347198397,1735563040018,-579.16276021,0.00013699,2]
[347198398,1735563040027,-579.16276021,0.00013699,2]
[347198399,1735563040036,-579.16276021,0.00013699,2]
[347198400,1735563040046,-579.16276021,0.00013699,2]
[347198401,1735563040055,-579.16276021,0.00013699,2]
[347198402,1735563040064,-579.16276021,0.00013699,2]
[347198403,1735563040073,-579.16276021,0.00013699,2]
[347198404,1735563040082,-579.16276021,0.00013699,2]
[347198405,1735563040091,-579.16276021,0.00013699,2]
[347198406,1735563040100,-579.16276021,0.00013699,2]
[347198407,1735563040109,-579.16276021,0.00013699,2]
[347198408,1735563040118,-579.16276021,0.00013699,2]
[347198409,1735563040127,-579.16276021,0.00013699,2]
[347198410,1735563040136,-579.16276021,0.00013699,2]
[347198411,1735563040145,-579.16276021,0.00013699,2]
[347198412,1735563040154,-496890.10247739,0.00015617,2]
[347198413,1735563040167,-1594.47001093,0.00015617,2]
[347198414,1735563040178,-3310.09749913,0.00015617,2]
[347198415,1735563040189,-3078.71844064,0.00015617,2]
[347198416,1735563040201,-7156.17125702,0.00015617,2]
[347198417,1735563040242,-433.31353003,0.00015126,2]
[347198418,1735563040252,-1354.55067164,0.00015126,2]
[347198419,1735563040263,-1421.43839753,0.00015126,2]
[347198420,1735563040301,-6827.68852207,0.00015126,2]
[347198421,1735563040310,-1155.71159438,0.00015617,2]
[347198441,1735563043525,-196622.4490801,0.00015617,2]
[347198446,1735563046396,-500.0,0.00012597,2]
[347198447,1735563046406,-15205.96,0.00015617,2]
[347198448,1735563046451,-23833.70301369,0.00015617,2]
[347198468,1735563864954,500.0,0.00021462,120]
[347198518,1735564197831,-584.8000152,0.00010942,2]
[347198519,1735564197856,-1051.34174352,0.00011052,2]
[347198520,1735564197905,-173.98815658,0.00011052,2]
[347198521,1735564197932,-300.0,0.00011144,2]
[347198522,1735564197957,-500.0,0.00011145,2]
[347198523,1735564197984,-188.87361458,0.00011145,2]
[347198901,1735564238396,-311.12638542,0.00011145,2]
[347198902,1735564238405,-500.0,0.00011145,2]
[347198904,1735564238415,-500.0,0.00011145,2]
[347198906,1735564238425,-500.0,0.00011145,2]
[347198908,1735564238435,-500.0,0.00011145,2]
[347198909,1735564238444,-500.0,0.00011145,2]
[347198910,1735564238454,-500.0,0.00011145,2]
[347198911,1735564238466,-500.0,0.00011418,2]
[347198912,1735564238476,-500.0,0.00011418,2]
[347198913,1735564238485,-500.0,0.00011418,2]
[347198914,1735564238495,-500.0,0.00011418,2]
[347198915,1735564238505,-500.0,0.00011418,2]
[347198916,1735564238515,-500.0,0.00011418,2]
[347198917,1735564238524,-500.0,0.00011419,2]
[347198918,1735564238533,-500.0,0.00011419,2]
[347198919,1735564238543,-500.0,0.00011419,2]
[347198920,1735564238552,-500.0,0.00011692,2]
[347198921,1735564238562,-500.0,0.00011692,2]
[347198922,1735564238572,-251.88003149,0.00011692,2]
[347198923,1735564238581,-500.0,0.00011692,2]
[347198925,1735564238591,-500.0,0.00011692,2]
[347198927,1735564238601,-500.0,0.00011693,2]
[347198930,1735564238610,-500.0,0.00011693,2]
[347198932,1735564238619,-500.0,0.00011966,2]
[347198934,1735564238629,-500.0,0.00011966,2]
[347198936,1735564238637,-500.0,0.00011966,2]
[347198937,1735564238646,-500.0,0.00011966,2]
[347198939,1735564238655,-500.0,0.0001224,2]
[347198941,1735564238664,-500.0,0.0001224,2]
[347198942,1735564238673,-500.0,0.0001224,2]
[347198944,1735564238683,-500.0,0.0001224,2]
[347198946,1735564238692,-500.0,0.00012324,2]
[347198948,1735564238701,-500.0,0.00012324,2]
[347198950,1735564238710,-500.0,0.00012324,2]
[347198951,1735564238720,-500.0,0.00012325,2]
[347198953,1735564238729,-500.0,0.00012325,2]
[347198955,1735564238739,-500.0,0.00012325,2]
[347198956,1735564238748,-500.0,0.00012325,2]
[347198958,1735564238757,-466.94,0.00012325,2]
[347198959,1735564238767,-500.0,0.00012325,2]
[347198960,1735564238776,-500.0,0.00012325,2]
[347198961,1735564238786,-500.0,0.00012325,2]
[347198962,1735564238795,-500.0,0.00012325,2]
[347198963,1735564238805,-255.87189111,0.00012325,2]
[347198964,1735564238814,-500.0,0.00012325,2]
[347198965,1735564238824,-500.0,0.00012325,2]
[347198966,1735564238833,-500.0,0.00012325,2]
[347198967,1735564238843,-500.0,0.00012325,2]
[347198968,1735564238852,-500.0,0.00012325,2]
[347198969,1735564238861,-500.0,0.00012325,2]
[347198970,1735564238870,-500.0,0.00012325,2]
[347198971,1735564238879,-500.0,0.00012325,2]
[347198972,1735564238888,-500.0,0.00012325,2]
[347198973,1735564238897,-500.0,0.00012325,2]
[347198974,1735564238907,-500.0,0.00012325,2]
[347198975,1735564238916,-500.0,0.00012325,2]
[347198976,1735564238925,-400.27,0.00012325,2]
[347198977,1735564238934,-500.0,0.00012325,2]
[347198978,1735564238943,-500.0,0.00012325,2]
[347198979,1735564238953,-500.0,0.00012325,2]
[347198980,1735564238965,-500.0,0.00012325,2]
[347198981,1735564238974,-500.0,0.00012325,2]
[347198982,1735564238983,-500.0,0.00012325,2]
[347198983,1735564238993,-682.9,0.00012325,2]
[347198984,1735564239002,-500.0,0.00012325,2]
[347198985,1735564239011,-2335.51,0.00012325,2]
[347198986,1735564239020,-260.51300519,0.00012326,2]
[347198987,1735564239030,-270.6365914,0.00012326,2]
[347198988,1735564239040,-500.0,0.00012326,2]
[347198989,1735564239049,-500.0,0.00012326,2]
[347198990,1735564239058,-500.0,0.00012326,2]
[347198991,1735564239068,-715.33,0.00012326,2]
[347198992,1735564239077,-500.0,0.00012326,2]
[347198993,1735564239086,-500.0,0.00012326,2]
[347198994,1735564239096,-501.64212445,0.00012327,2]
[347198995,1735564239105,-500.0,0.00012327,2]
[347198996,1735564239115,-500.0,0.00012327,2]
[347198997,1735564239124,-503.712558,0.00012327,2]
[347198998,1735564239134,-500.0,0.00012327,2]
[347198999,1735564239143,-500.0,0.00012327,2]
[347199000,1735564239152,-500.0,0.00012327,2]
[347199001,1735564239161,-500.0,0.00012327,2]
[347199002,1735564239171,-500.0,0.00012327,2]
[347199003,1735564239180,-500.0,0.00012327,2]
[347199004,1735564239190,-500.65827239,0.00012327,2]
[347199005,1735564239201,-500.0,0.00012327,2]
[347199006,1735564239213,-500.0,0.00012327,2]
[347199007,1735564239222,-503.48872731,0.00012327,2]
[347199008,1735564239232,-500.0,0.00012327,2]
[347199009,1735564239242,-500.0,0.00012327,2]
[347199010,1735564239254,-292.15350081,0.00012327,2]
[347199011,1735564239263,-500.71127326,0.00012327,2]
[347199012,1735564239272,-500.0,0.00012327,2]
[347199013,1735564239372,-500.0,0.00012327,2]
[347199014,1735564239383,-500.0,0.00012327,2]
[347199015,1735564239392,-500.0,0.00012327,2]
[347199016,1735564239402,-500.0,0.00012327,2]
[347199017,1735564239412,-549.72498998,0.00012327,2]
[347199018,1735564239421,-500.0,0.00012327,2]
[347199019,1735564239431,-500.0,0.00012327,2]
[347199020,1735564239440,-500.0,0.00012327,2]
[347199021,1735564239450,-500.0,0.00012327,2]
[347199022,1735564239461,-501.14956778,0.00012327,2]
[347199023,1735564239471,-505.07602194,0.00012327,2]
[347199024,1735564239480,-500.0,0.00012327,2]
[347199025,1735564239489,-500.0,0.00012327,2]
[347199026,1735564239499,-500.0,0.00012327,2]
[347199027,1735564239508,-500.0,0.00012327,2]
[347199028,1735564239518,-500.0,0.00012327,2]
[347199029,1735564239527,-500.0,0.00012327,2]
[347199030,1735564239537,-500.0,0.00012327,2]
[347199031,1735564239546,-503.12843763,0.00012327,2]
[347199032,1735564239556,-501.24846821,0.00012327,2]
[347199033,1735564239565,-500.0,0.00012327,2]
[347199034,1735564239576,-502.30033796,0.00012327,2]
[347199035,1735564239585,-500.0,0.00012327,2]
[347199036,1735564239594,-525.24148733,0.00012327,2]
[347199037,1735564239604,-502.57302151,0.00012327,2]
[347199038,1735564239613,-502.8024777,0.00012327,2]
[347199039,1735564239622,-503.97015443,0.00012327,2]
[347199040,1735564239632,-500.0,0.00012327,2]
[347199041,1735564239641,-500.0,0.00012327,2]
[347199042,1735564239650,-1862.16,0.00012327,2]
[347199043,1735564239659,-500.0,0.00012327,2]
[347199044,1735564239668,-500.0,0.00012327,2]
[347199045,1735564239678,-500.0,0.00012327,2]
[347199046,1735564239687,-500.0,0.00012327,2]
[347199047,1735564239697,-500.0,0.00012327,2]
[347199048,1735564239706,-500.0,0.00012327,2]
[347199049,1735564239717,-500.0,0.00012327,2]
[347199050,1735564239727,-501.74495404,0.00012327,2]
[347199051,1735564239737,-500.0,0.00012514,2]
[347199052,1735564239747,-500.0,0.00012514,2]
[347199053,1735564239756,-500.0,0.00012514,2]
[347199054,1735564239766,-352.13434088,0.00012597,2]
[347199055,1735564239775,-554.14804999,0.00012597,2]
[347199056,1735564239784,-585.23488923,0.00012597,2]
[347199057,1735564239794,-500.0,0.00012597,2]
[347199058,1735564239804,-500.0,0.00012597,2]
[347199059,1735564239813,-501.9451101,0.00012597,2]
[347199060,1735564239822,-500.0,0.00012597,2]
[347199061,1735564239832,-500.0,0.00012597,2]
[347199062,1735564239842,-500.0,0.00012597,2]
[347199063,1735564239851,-500.0,0.00012597,2]
[347199064,1735564239860,-501.34607542,0.00012597,2]
[347199065,1735564239870,-449.29853424,0.00012597,2]
[347199066,1735564239879,-500.0,0.00012597,2]
[347199067,1735564239888,-443.62502219,0.00012597,2]
[347199068,1735564239897,-505.00138099,0.00012597,2]
[347199069,1735564239906,-500.0,0.00012597,2]
[347199070,1735564239916,-500.0,0.00012597,2]
[347199071,1735564239925,-500.0,0.00012597,2]
[347199072,1735564239935,-500.0,0.00012597,2]
[347199073,1735564239944,-500.0,0.00012597,2]
[347199074,1735564239953,-500.0,0.00012597,2]
[347199075,1735564239964,-266.92551397,0.00012597,2]
[347199076,1735564239974,-500.0,0.00012597,2]
[347199077,1735564239983,-500.0,0.00012597,2]
[347199079,1735564239992,-500.0,0.00012597,2]
[347199080,1735564240001,-500.0,0.00012597,2]
[347199081,1735564240010,-500.0,0.00012597,2]
[347199082,1735564240021,-500.0,0.00012597,2]
[347199084,1735564240030,-500.0,0.00012597,2]
[347199085,1735564240040,-500.0,0.00012597,2]
[347199086,1735564240049,-500.0,0.00012597,2]
[347199087,1735564240058,-500.0,0.00012598,2]
[347199088,1735564240068,-500.0,0.00012598,2]
[347199090,1735564240077,-500.0,0.00012598,2]
[347199091,1735564240087,-500.0,0.00012598,2]
[347199092,1735564240096,-500.0,0.00012598,2]
[347199093,1735564240105,-821.99,0.00012598,2]
[347199094,1735564240115,-500.0,0.00012598,2]
[347199095,1735564240125,-500.0,0.00012599,2]
[347199096,1735564240134,-500.0,0.00012599,2]
[347199098,1735564240144,-500.0,0.00012599,2]
[347199100,1735564240154,-208.35277077,0.00012599,2]
[347199102,1735564240164,-500.0,0.00012599,2]
[347199104,1735564240174,-500.0,0.00012599,2]
[347199105,1735564240184,-500.0,0.00012599,2]
[347199106,1735564240194,-500.0,0.00012599,2]
[347199108,1735564240207,-500.0,0.00012599,2]
[347199110,1735564240217,-500.0,0.00012599,2]
[347199112,1735564240227,-500.0,0.00012599,2]
[347199113,1735564240238,-500.0,0.00012599,2]
[347199115,1735564240248,-500.0,0.00012599,2]
[347199117,1735564240258,-500.0,0.00012599,2]
[347199119,1735564240268,-500.0,0.00012599,2]
[347199120,1735564240278,-500.0,0.00012599,2]
[347199122,1735564240287,-281.33122712,0.00012599,2]
[347199124,1735564240296,-500.0,0.00012599,2]
[347199126,1735564240306,-682.9,0.00012599,2]
[347199128,1735564240315,-2335.51,0.00012599,2]
[347199130,1735564240325,-715.33,0.000126,2]
[347199132,1735564240335,-500.0,0.00012601,2]
[347199133,1735564240344,-500.0,0.00012601,2]
[347199135,1735564240353,-500.0,0.00012601,2]
[347199137,1735564240362,-1862.16,0.00012601,2]
[347199138,1735564240372,-500.0,0.00012601,2]
[347199140,1735564240381,-500.0,0.00012601,2]
[347199141,1735564240390,-500.0,0.00012601,2]
[347199142,1735564240399,-500.0,0.00012601,2]
[347199143,1735564240408,-500.0,0.00012788,2]
[347199144,1735564240417,-422.91825449,0.00012788,2]
[347199145,1735564240427,-500.0,0.00012788,2]
[347199146,1735564240436,-500.0,0.00012825,2]
[347199147,1735564240446,-500.0,0.0001287,2]
[347199148,1735564240455,-500.0,0.0001287,2]
[347199149,1735564240465,-821.99,0.00012872,2]
[347199150,1735564240474,-500.0,0.00012872,2]
[347199152,1735564240484,-500.0,0.00012873,2]
[347199154,1735564240493,-557.41,0.00012873,2]
[347199155,1735564240503,-500.0,0.00012873,2]
[347199156,1735564240512,-500.0,0.00012873,2]
[347199157,1735564240521,-500.0,0.00012873,2]
[347199158,1735564240530,-500.0,0.00012873,2]
[347199159,1735564240539,-500.0,0.00012873,2]
[347199160,1735564240548,-581.47,0.00012873,2]
[347199161,1735564240557,-527.38353024,0.00012873,2]
[347199162,1735564240567,-500.0,0.00012873,2]
[347199163,1735564240577,-424.4,0.00012873,2]
[347199164,1735564240586,-500.0,0.00012873,2]
[347199165,1735564240595,-500.0,0.00012873,2]
[347199166,1735564240604,-682.9,0.00012873,2]
[347199167,1735564240613,-2335.51,0.00012873,2]
[347199168,1735564240622,-500.0,0.00012875,2]
[347199169,1735564240632,-1862.16,0.00012875,2]
[347199170,1735564240641,-500.0,0.00012875,2]
[347199171,1735564240653,-500.0,0.00012875,2]
[347199172,1735564240662,-281.8436233,0.000129,2]
[347199173,1735564240672,-166.04186831,0.00013025,2]
[347199174,1735564240681,-500.0,0.00013062,2]
[347199175,1735564240690,-258.41,0.00013062,2]
[347199176,1735564240699,-500.0,0.00013146,2]
[347199177,1735564240709,-821.99,0.00013146,2]
[347199178,1735564240719,-500.0,0.00013146,2]
[347199179,1735564240728,-500.0,0.00013147,2]
[347199180,1735564240737,-500.0,0.00013147,2]
[347199181,1735564240747,-500.0,0.00013147,2]
[347199182,1735564240756,-500.0,0.00013147,2]
[347199183,1735564240765,-682.9,0.00013147,2]
[347199184,1735564240774,-2335.51,0.00013147,2]
[347199185,1735564240783,-500.0,0.00013148,2]
[347199186,1735564240792,-500.0,0.00013149,2]
[347199187,1735564240801,-1862.16,0.00013149,2]
[347199188,1735564240810,-500.0,0.00013149,2]
[347199189,1735564240819,-500.0,0.00013336,2]
[347199190,1735564240829,-500.0,0.0001342,2]
[347199191,1735564240838,-500.0,0.0001342,2]
[347199192,1735564240847,-500.0,0.0001342,2]
[347199193,1735564240857,-715.33,0.0001342,2]
[347199194,1735564240866,-821.99,0.0001342,2]
[347199195,1735564240876,-500.0,0.00013421,2]
[347199196,1735564240885,-157.12,0.00013421,2]
[347199197,1735564240895,-500.0,0.00013421,2]
[347199198,1735564240904,-500.0,0.00013421,2]
[347199199,1735564240913,-682.9,0.00013421,2]
[347199200,1735564240923,-2335.51,0.00013421,2]
[347199201,1735564240933,-500.0,0.00013423,2]
[347199202,1735564240942,-1862.16,0.00013423,2]
[347199203,1735564240951,-500.0,0.00013423,2]
[347199204,1735564240961,-281.84362324,0.00013531,2]
[347199205,1735564240970,-503.16139124,0.00013599,2]
[347199206,1735564240979,-500.0,0.0001361,2]
[347199207,1735564240988,-821.99,0.00013694,2]
[347199208,1735564240997,-500.0,0.00013695,2]
[347199209,1735564241007,-500.0,0.00013695,2]
[347199210,1735564241018,-500.0,0.00013695,2]
[347199211,1735564241027,-682.9,0.00013695,2]
[347199212,1735564241036,-2335.51,0.00013695,2]
[347199213,1735564241046,-500.0,0.00013696,2]
[347199214,1735564241055,-500.0,0.00013697,2]
[347199215,1735564241065,-1862.16,0.00013697,2]
[347199216,1735564241074,-500.0,0.00013697,2]
[347199217,1735564241084,-500.0,0.00013698,2]
[347199218,1735564241093,-500.0,0.00013698,2]
[347199219,1735564241103,-500.0,0.00013698,2]
[347199220,1735564241113,-500.0,0.00013698,2]
[347199221,1735564241122,-501.34918812,0.00013698,2]
[347199222,1735564241131,-484.95,0.00013698,2]
[347199223,1735564241141,-715.33,0.00013698,2]
[347199224,1735564241151,-715.33,0.00013698,2]
[347199225,1735564241160,-20084.999476,0.00013699,2]
[347199226,1735564241169,-1986.592154,0.00013699,2]
[347199227,1735564241178,-2331.8952588,0.00013699,2]
[347199228,1735564241188,-500.0,0.00013699,2]
[347199229,1735564241197,-500.0,0.00013699,2]
[347199230,1735564241210,-500.0,0.00013699,2]
[347199231,1735564241219,-500.0,0.00013699,2]
[347199232,1735564241228,-500.0,0.00013699,2]
[347199233,1735564241239,-500.0,0.00013699,2]
[347199234,1735564241249,-500.0,0.00013699,2]
[347199235,1735564241259,-500.0,0.00013699,2]
[347199236,1735564241268,-500.0,0.00013699,2]
[347199237,1735564241280,-500.0,0.00013699,2]
[347199238,1735564241290,-500.0,0.00013699,2]
[347199239,1735564241299,-500.0,0.00013699,2]
[347199240,1735564241309,-500.0,0.00013699,2]
[347199241,1735564241388,-500.0,0.00013699,2]
[347199242,1735564241398,-500.0,0.00013699,2]
[347199243,1735564241407,-500.0,0.00013699,2]
[347199244,1735564241416,-500.0,0.00013699,2]
[347199245,1735564241425,-500.0,0.00013699,2]
[347199246,1735564241434,-500.0,0.00013699,2]
[347199247,1735564241443,-500.0,0.00013699,2]
[347199248,1735564241452,-500.0,0.00013699,2]
[347199249,1735564241462,-500.0,0.00013699,2]
[347199250,1735564241471,-500.0,0.00013699,2]
[347199251,1735564241480,-500.0,0.00013699,2]
[347199252,1735564241489,-500.0,0.00013699,2]
[347199253,1735564241498,-500.0,0.00013699,2]
[347199254,1735564241508,-500.0,0.00013699,2]
[347199255,1735564241517,-500.0,0.00013699,2]
[347199256,1735564241526,-500.0,0.00013699,2]
[347199257,1735564241536,-500.0,0.00013699,2]
[347199258,1735564241545,-500.0,0.00013699,2]
[347199259,1735564241554,-500.0,0.00013699,2]
[347199260,1735564241564,-284.98593676,0.00013699,2]
[347199261,1735564241573,-500.0,0.00013699,2]
[347199262,1735564241582,-500.0,0.00013699,2]
[347199263,1735564241591,-500.0,0.00013699,2]
[347199264,1735564241600,-500.0,0.00013699,2]
[347199265,1735564241610,-551.85262646,0.00013699,2]
[347199266,1735564241620,-551.85262646,0.00013699,2]
[347199267,1735564241629,-551.85262646,0.00013699,2]
[347199268,1735564241639,-551.85262646,0.00013699,2]
[347199269,1735564241648,-551.85262646,0.00013699,2]
[347199270,1735564241657,-551.85262646,0.00013699,2]
[347199271,1735564241666,-551.85262646,0.00013699,2]
[347199272,1735564241676,-551.85262646,0.00013699,2]
[347199273,1735564241686,-551.85262646,0.00013699,2]
[347199274,1735564241695,-551.85262646,0.00013699,2]
[347199275,1735564241704,-551.85262646,0.00013699,2]
[347199276,1735564241714,-551.85262646,0.00013699,2]
[347199277,1735564241723,-551.85262646,0.00013699,2]
[347199278,1735564241733,-551.85262646,0.00013699,2]
[347199279,1735564241743,-551.85262646,0.00013699,2]
[347199280,1735564241752,-551.85262646,0.00013699,2]
[347199281,1735564241762,-551.85262646,0.00013699,2]
[347199282,1735564241771,-551.85262646,0.00013699,2]
[347199283,1735564241781,-551.85262646,0.00013699,2]
[347199284,1735564241790,-551.85262646,0.00013699,2]
[347199285,1735564241800,-551.85262646,0.00013699,2]
[347199286,1735564241810,-551.85262646,0.00013699,2]
[347199287,1735564241820,-551.85262646,0.00013699,2]
[347199288,1735564241830,-551.85262646,0.00013699,2]
[347199289,1735564241839,-551.85262646,0.00013699,2]
[347199290,1735564241849,-551.85262646,0.00013699,2]
[347199291,1735564241858,-551.85262646,0.00013699,2]
[347199292,1735564241867,-551.85262646,0.00013699,2]
[347199293,1735564241877,-551.85262646,0.00013699,2]
[347199294,1735564241886,-551.85262646,0.00013699,2]
[347199295,1735564241896,-551.85262646,0.00013699,2]
[347199296,1735564241905,-551.85262646,0.00013699,2]
[347199297,1735564241915,-551.85262646,0.00013699,2]
[347199298,1735564241924,-551.85262646,0.00013699,2]
[347199299,1735564241933,-551.85262646,0.00013699,2]
[347199300,1735564241942,-551.85262646,0.00013699,2]
[347199301,1735564241951,-591.98698451,0.00013699,2]
[347199302,1735564241960,-591.98698451,0.00013699,2]
[347199303,1735564241969,-591.98698451,0.00013699,2]
[347199304,1735564241979,-591.98698451,0.00013699,2]
[347199305,1735564241990,-591.98698451,0.00013699,2]
[347199306,1735564242000,-591.98698451,0.00013699,2]
[347199307,1735564242010,-591.98698451,0.00013699,2]
[347199308,1735564242019,-591.98698451,0.00013699,2]
[347199309,1735564242028,-591.98698451,0.00013699,2]
[347199310,1735564242036,-591.98698451,0.00013699,2]
[347199311,1735564242045,-591.98698451,0.00013699,2]
[347199312,1735564242055,-591.98698451,0.00013699,2]
[347199313,1735564242064,-591.98698451,0.00013699,2]
[347199314,1735564242073,-591.98698451,0.00013699,2]
[347199315,1735564242082,-591.98698451,0.00013699,2]
[347199316,1735564242091,-591.98698451,0.00013699,2]
[347199317,1735564242101,-591.98698451,0.00013699,2]
[347199318,1735564242110,-591.98698451,0.00013699,2]
[347199319,1735564242120,-262.42338212,0.00013699,2]
[347199320,1735564242129,-500.0,0.00013884,2]
[347199321,1735564242138,-821.99,0.00013968,2]
[347199322,1735564242147,-500.0,0.00013969,2]
[347199323,1735564242156,-500.0,0.00013969,2]
[347199324,1735564242166,-500.0,0.00013969,2]
[347199325,1735564242175,-682.9,0.00013969,2]
[347199326,1735564242184,-2335.51,0.00013969,2]
[347199327,1735564242193,-500.0,0.00013971,2]
[347199328,1735564242205,-1862.16,0.00013971,2]
[347199329,1735564242219,-500.0,0.00013971,2]
[347199330,1735564242230,-400.0,0.00013973,2]
[347199331,1735564242239,-503.16139121,0.00014079,2]
[347199332,1735564242253,-622.25370346,0.00014158,2]
[347199333,1735564242265,-821.99,0.00014242,2]
[347199334,1735564242276,-209.03363622,0.00014243,2]
[347199335,1735564242289,-500.0,0.00014243,2]
[347199336,1735564242299,-500.0,0.00014243,2]
[347199337,1735564242308,-682.9,0.00014243,2]